[Event "33rd Pula Open 2019"]
[Site "Pula"]
[Date "2019.06.22"]
[Round "1.1"]
[White "Saric, Ante"]
[Black "Ikica, Ante"]
[Result "1-0"]
[ECO "B38"]
[WhiteElo "2542"]
[BlackElo "1911"]
[Annotator "ChessBase"]
[PlyCount "35"]
[EventDate "2019.06.22"]
[EventType "swiss"]
[EventCountry "CRO"]
[SourceTitle "playchess.com"]
[Source "ChessBase"]
[SourceQuality "1"]
[TimeControl "5400+30"]

1. d4 {[%emt 0:00:30]} Nf6 {[%emt 0:01:30]} 2. Nf3 {[%emt 0:00:30]} g6 {[%emt 0:00:30]} 3. c4 {[%emt 0:00:00]} c5 {[%emt 0:02:30]} 4. Nc3 {[%emt 0:00:00]} cxd4 {[%emt 0:01:30]} 5. Nxd4 {[%emt 0:00:30]} Nc6 {[%emt 0:00:30]} 6. e4 {[%emt 0:00:00]} d6 {[%emt 0:00:30]} 7. Be2 {[%emt 0:00:00]} Bg7 {[%emt 0:01:30]} 8. Be3 {[%emt 0:00:30]} Bd7 {[%emt 0:05:30]} 9. O-O {[%emt 0:00:30]} O-O {[%emt 0:02:30]} 10. h3 {[%emt 0:03:30]} a6 {[%emt 0:07:30]} 11. Qd2 {[%emt 0:06:30]} Nxd4 {[%emt 0:01:30]} 12. Bxd4 {[%emt 0:00:30]} Bc6 {[%emt 0:00:30]} 13. Bd3 {[%emt 0:01:30]} b5 {[%emt 0:04:30]} 14. Rfe1 {[%emt 0:05:30]} e5 {[%emt 0:02:30]} 15. Be3 {[%emt 0:00:30]} bxc4 {[%emt 0:04:30]} 16. Bxc4 {[%emt 0:00:30]} Nxe4 {[%emt 0:00:30]} 17. Nxe4 {[%emt 0:00:00]} Bxe4 {[%emt 0:00:30]} 18. Bg5 {[%emt 0:00:00]} 1-0

[Event "33rd Pula Open 2019"]
[Site "Pula"]
[Date "2019.06.22"]
[Round "1.2"]
[White "Hrdina, Karl"]
[Black "Zelcic, Robert"]
[Result "0-1"]
[ECO "D02"]
[WhiteElo "1905"]
[BlackElo "2518"]
[Annotator "ChessBase"]
[PlyCount "60"]
[EventDate "2019.06.22"]
[EventType "swiss"]
[EventCountry "CRO"]
[SourceTitle "playchess.com"]
[Source "ChessBase"]
[SourceQuality "1"]
[TimeControl "5400+30"]

1. d4 {[%emt 0:00:30]} c5 {[%emt 0:00:30]} 2. c3 {[%emt 0:00:30]} d5 {[%emt 0:00:00]} 3. Nf3 {[%emt 0:00:30]} Nc6 {[%emt 0:00:00]} 4. Bf4 {[%emt 0:01:30]} Nf6 {[%emt 0:00:30]} 5. Nbd2 {[%emt 0:01:30]} e6 {[%emt 0:00:00]} 6. h3 {[%emt 0:00:30]} Bd6 {[%emt 0:00:00]} 7. Bxd6 {[%emt 0:01:30]} Qxd6 {[%emt 0:00:30]} 8. e3 {[%emt 0:00:30]} O-O {[%emt 0:00:30]} 9. Bd3 {[%emt 0:00:30]} e5 {[%emt 0:00:30]} 10. dxe5 {[%emt 0:00:30]} Nxe5 {[%emt 0:00:30]} 11. Nxe5 {[%emt 0:01:30]} Qxe5 {[%emt 0:00:30]} 12. O-O {[%emt 0:01:30]} Re8 {[%emt 0:06:30]} 13. Qf3 {[%emt 0:00:30]} Bd7 {[%emt 0:00:30]} 14. Qf4 {[%emt 0:04:30]} Qxf4 {[%emt 0:00:30]} 15. exf4 {[%emt 0:00:00]} Nh5 {[%emt 0:00:00]} 16. f5 {[%emt 0:02:00]} Nf4 {[%emt 0:00:00]} 17. Bc2 {[%emt 0:00:30]} d4 {[%emt 0:00:30]} 18. cxd4 {[%emt 0:04:30]} Ne2+ {[%emt 0:00:30]} 19. Kh2 {[%emt 0:00:30]} Nxd4 {[%emt 0:00:00]} 20. Rac1 {[%emt 0:02:30]} Re2 {[%emt 0:05:00]} 21. Rfd1 {[%emt 0:00:30]} Nxc2 {[%emt 0:00:30]} 22. Rxc2 {[%emt 0:00:30]} b6 {[%emt 0:00:30]} 23. Rcc1 {[%emt 0:06:30]} Bxf5 {[%emt 0:00:30]} 24. Kg3 {[%emt 0:01:30]} h6 {[%emt 0:04:30]} 25. Nc4 {[%emt 0:01:30]} Be6 {[%emt 0:01:30]} 26. a4 {[%emt 0:07:30]} Bxc4 {[%emt 0:00:30]} 27. Rxc4 {[%emt 0:00:00]} Rxb2 {[%emt 0:00:00]} 28. Ra1 {[%emt 0:03:00]} Rd8 {[%emt 0:00:00]} 29. a5 {[%emt 0:00:00]} Rd3+ {[%emt 0:00:30]} 30. Kh2 {[%emt 0:00:00]} Rxf2 {[%emt 0:00:30]} 0-1

[Event "33rd Pula Open 2019"]
[Site "Pula"]
[Date "2019.06.22"]
[Round "1.3"]
[White "Jovanovic, Zoran"]
[Black "Bryant, Richard B E"]
[Result "1-0"]
[ECO "C17"]
[WhiteElo "2503"]
[BlackElo "1900"]
[Annotator "ChessBase"]
[PlyCount "45"]
[EventDate "2019.06.22"]
[EventType "swiss"]
[EventCountry "CRO"]
[SourceTitle "playchess.com"]
[Source "ChessBase"]
[SourceQuality "1"]
[TimeControl "5400+30"]

1. e4 {[%emt 0:00:30]} e6 {[%emt 0:00:30]} 2. d4 {[%emt 0:00:00]} d5 {[%emt 0:00:00]} 3. Nc3 {[%emt 0:00:00]} Bb4 {[%emt 0:00:00]} 4. e5 {[%emt 0:00:00]} c5 {[%emt 0:00:30]} 5. Bd2 {[%emt 0:00:00]} a6 {[%emt 0:00:30]} 6. a3 {[%emt 0:00:30]} cxd4 {[%emt 0:01:30]} 7. axb4 {[%emt 0:00:00]} dxc3 {[%emt 0:00:30]} 8. Bxc3 {[%emt 0:00:00]} Ne7 {[%emt 0:00:30]} 9. Qg4 {[%emt 0:00:30]} Ng6 {[%emt 0:01:30]} 10. Nf3 {[%emt 0:00:00]} Bd7 {[%emt 0:01:30]} 11. b5 {[%emt 0:02:00]} Qb6 {[%emt 0:02:30]} 12. h4 {[%emt 0:03:30]} h5 {[%emt 0:06:30]} 13. Qb4 {[%emt 0:00:30]} Ne7 {[%emt 0:01:30]} 14. Bd3 {[%emt 0:01:30]} Nf5 {[%emt 0:01:30]} 15. O-O {[%emt 0:01:30]} Qd8 {[%emt 0:07:30]} 16. Rfd1 {[%emt 0:00:00]} Ne7 {[%emt 0:04:30]} 17. Bd4 {[%emt 0:02:00]} a5 {[%emt 0:02:30]} 18. Qd2 {[%emt 0:00:00]} Bc8 {[%emt 0:02:30]} 19. Qg5 {[%emt 0:02:00]} Nd7 {[%emt 0:04:30]} 20. Qxg7 {[%emt 0:00:30]} Rg8 {[%emt 0:00:00]} 21. Qh6 {[%emt 0:00:30]} Ng6 {[%emt 0:06:00]} 22. Bxg6 {[%emt 0:00:30]} fxg6 {[%emt 0:01:30]} 23. Qh7 {[%emt 0:00:00]} 1-0

[Event "33rd Pula Open 2019"]
[Site "Pula"]
[Date "2019.06.22"]
[Round "1.4"]
[White "Skrbec, Leon"]
[Black "Tratar, Marko"]
[Result "0-1"]
[ECO "A41"]
[WhiteElo "1896"]
[BlackElo "2463"]
[Annotator "ChessBase"]
[PlyCount "144"]
[EventDate "2019.06.22"]
[EventType "swiss"]
[EventCountry "CRO"]
[SourceTitle "playchess.com"]
[Source "ChessBase"]
[SourceQuality "1"]
[TimeControl "5400+30"]

1. d4 {[%emt 0:00:30]} d6 {[%emt 0:00:30]} 2. c4 {[%emt 0:00:30]} e5 {[%emt 0:00:30]} 3. e3 {[%emt 0:00:30]} Be7 {[%emt 0:11:30]} 4. Nc3 {[%emt 0:02:30]} f5 {[%emt 0:00:30]} 5. Nf3 {[%emt 0:01:30]} e4 {[%emt 0:00:30]} 6. Nd2 {[%emt 0:00:30]} Nf6 {[%emt 0:00:30]} 7. Be2 {[%emt 0:01:30]} c5 {[%emt 0:07:30]} 8. Nb3 {[%emt 0:04:30]} O-O {[%emt 0:12:30]} 9. O-O {[%emt 0:01:30]} b6 {[%emt 0:10:30]} 10. f3 {[%emt 0:04:30]} Bb7 {[%emt 0:01:30]} 11. fxe4 {[%emt 0:03:30]} Nxe4 {[%emt 0:03:30]} 12. Nxe4 {[%emt 0:00:30]} Bxe4 {[%emt 0:01:30]} 13. Bf3 {[%emt 0:03:30]} Nc6 {[%emt 0:08:30]} 14. Bd2 {[%emt 0:04:30]} cxd4 {[%emt 0:04:30]} 15. Nxd4 {[%emt 0:02:30]} Nxd4 {[%emt 0:01:30]} 16. Bxe4 {[%emt 0:00:30]} fxe4 {[%emt 0:00:00]} 17. exd4 {[%emt 0:00:30]} Rxf1+ {[%emt 0:08:00]} 18. Qxf1 {[%emt 0:00:30]} Bf6 {[%emt 0:00:00]} 19. Bc3 {[%emt 0:01:30]} Qd7 {[%emt 0:05:00]} 20. Qf4 {[%emt 0:03:30]} Re8 {[%emt 0:05:39]} 21. Re1 {[%emt 0:01:30]} d5 {[%emt 0:07:34]} 22. a3 {[%emt 0:04:30]} h6 {[%emt 0:00:33]} 23. h4 {[%emt 0:01:30]} Qf7 {[%emt 0:05:58]} 24. g3 {[%emt 0:03:30]} Qd7 {[%emt 0:00:08]} 25. Kg2 {[%emt 0:00:00]} dxc4 {[%emt 0:01:10]} 26. Qe3 {[%emt 0:06:00]} Qd5 {[%emt 0:00:12]} 27. Kh2 {[%emt 0:00:30]} b5 {[%emt 0:01:15]} 28. Rd1 {[%emt 0:01:30]} a6 {[%emt 0:00:39]} 29. Kg2 {[%emt 0:00:30]} Re6 {[%emt 0:00:33]} 30. Re1 {[%emt 0:00:30]} Bd8 {[%emt 0:00:52]} 31. Rf1 {[%emt 0:00:30]} Bc7 {[%emt 0:00:27]} 32. Bb4 {[%emt 0:01:30]} Rg6 {[%emt 0:00:55]} 33. Rf8+ {[%emt 0:00:30]} Kh7 {[%emt 0:00:01]} 34. Be1 {[%emt 0:00:30]} Bd6 {[%emt 0:01:07]} 35. Re8 {[%emt 0:00:30]} Re6 {[%emt 0:00:51]} 36. Rd8 {[%emt 0:04:30]} Qf5 {[%emt 0:00:07]} 37. Bc3 {[%emt 0:00:30]} Rf6 {[%emt 0:00:50]} 38. Qe2 {[%emt 0:00:30]} Qg6 {[%emt 0:00:29]} 39. Be1 {[%emt 0:01:30]} Re6 {[%emt 0:00:59]} 40. Rd7 {[%emt 0:03:30]} Qf5 {[%emt 0:00:27]} 41. Qf2 {[%emt 0:13:30]} Qxf2+ {[%emt 0:00:33]} 42. Bxf2 {[%emt 0:00:30]} h5 {[%emt 0:00:08]} 43. Ra7 {[%emt 0:00:30]} e3 {[%emt 0:00:57]} 44. Be1 {[%emt 0:00:30]} Re4 {[%emt 0:00:24]} 45. Rxa6 {[%emt 0:00:00]} Rxd4 {[%emt 0:00:03]} 46. Kf3 {[%emt 0:00:00]} Rd3 {[%emt 0:00:28]} 47. Ke2 {[%emt 0:00:30]} g6 {[%emt 0:00:52]} 48. Rb6 {[%emt 0:01:30]} Rd5 {[%emt 0:00:28]} 49. Rb7+ {[%emt 0:00:30]} Kg8 {[%emt 0:00:06]} 50. Rd7 {[%emt 0:03:30]} Rd3 {[%emt 0:00:06]} 51. Rb7 {[%emt 0:01:41]} Rb3 {[%emt 0:00:10]} 52. Bc3 {[%emt 0:01:37]} Bxa3 {[%emt 0:01:38]} 53. bxa3 {[%emt 0:00:15]} Rxc3 {[%emt 0:00:06]} 54. Rxb5 {[%emt 0:00:04]} Rxa3 {[%emt 0:00:08]} 55. Rc5 {[%emt 0:00:27]} Rc3 {[%emt 0:00:12]} 56. Rc7 {[%emt 0:00:55]} Kf8 {[%emt 0:00:05]} 57. Kd1 {[%emt 0:01:02]} Rd3+ {[%emt 0:01:44]} 58. Ke2 {[%emt 0:00:05]} Rd4 {[%emt 0:00:06]} 59. Kxe3 {[%emt 0:00:19]} Rg4 {[%emt 0:00:05]} 60. Ke2 {[%emt 0:00:56]} Ke8 {[%emt 0:00:21]} 61. Kd2 {[%emt 0:01:08]} Kd8 {[%emt 0:00:18]} 62. Rc5 {[%emt 0:00:42]} Ke7 {[%emt 0:00:55]} 63. Ke2 {[%emt 0:00:15]} Kd6 {[%emt 0:00:11]} 64. Rc8 {[%emt 0:00:21]} Kd5 {[%emt 0:00:14]} 65. Rd8+ {[%emt 0:00:16]} Kc5 {[%emt 0:00:19]} 66. Rc8+ {[%emt 0:00:24]} Kd4 {[%emt 0:00:21]} 67. Rd8+ {[%emt 0:00:32]} Kc3 {[%emt 0:00:06]} 68. Kf2 {[%emt 0:00:31]} Kc2 {[%emt 0:00:17]} 69. Rc8 {[%emt 0:00:30]} c3 {[%emt 0:00:06]} 70. Rc7 {[%emt 0:00:27]} Kd3 {[%emt 0:01:13]} 71. Rd7+ {[%emt 0:00:16]} Rd4 {[%emt 0:00:08]} 72. Rc7 {[%emt 0:00:32]} c2 {[%emt 0:00:14]} 0-1

[Event "33rd Pula Open 2019"]
[Site "Pula"]
[Date "2019.06.22"]
[Round "1.5"]
[White "Fercec, Nenad"]
[Black "Froehlich-Dill, Astrid"]
[Result "1-0"]
[ECO "B06"]
[WhiteElo "2446"]
[BlackElo "1877"]
[Annotator "ChessBase"]
[PlyCount "79"]
[EventDate "2019.06.22"]
[EventType "swiss"]
[EventCountry "CRO"]
[SourceTitle "playchess.com"]
[Source "ChessBase"]
[SourceQuality "1"]
[TimeControl "5400+30"]

1. e4 {[%emt 0:00:30]} e6 {[%emt 0:00:30]} 2. d4 {[%emt 0:00:00]} g6 {[%emt 0:01:30]} 3. Nc3 {[%emt 0:00:00]} Bg7 {[%emt 0:00:30]} 4. Be3 {[%emt 0:00:00]} b6 {[%emt 0:01:30]} 5. Qd2 {[%emt 0:00:00]} Bb7 {[%emt 0:00:30]} 6. O-O-O {[%emt 0:00:30]} Nc6 {[%emt 0:05:30]} 7. h4 {[%emt 0:00:30]} h5 {[%emt 0:05:30]} 8. Kb1 {[%emt 0:00:30]} Nf6 {[%emt 0:05:30]} 9. f3 {[%emt 0:00:00]} d6 {[%emt 0:03:30]} 10. Nh3 {[%emt 0:02:00]} Qd7 {[%emt 0:03:30]} 11. Ng5 {[%emt 0:05:30]} O-O-O {[%emt 0:03:30]} 12. g3 {[%emt 0:03:30]} Nh7 {[%emt 0:08:30]} 13. Bh3 {[%emt 0:05:30]} Nxg5 {[%emt 0:01:30]} 14. hxg5 {[%emt 0:00:30]} Kb8 {[%emt 0:01:30]} 15. f4 {[%emt 0:01:30]} Na5 {[%emt 0:04:30]} 16. b3 {[%emt 0:02:30]} Qe7 {[%emt 0:04:30]} 17. Rhe1 {[%emt 0:01:30]} c5 {[%emt 0:09:30]} 18. d5 {[%emt 0:04:30]} h4 {[%emt 0:11:30]} 19. g4 {[%emt 0:00:30]} f6 {[%emt 0:08:20]} 20. f5 {[%emt 0:01:30]} exd5 {[%emt 0:03:02]} 21. Nxd5 {[%emt 0:04:30]} Bxd5 {[%emt 0:00:39]} 22. exd5 {[%emt 0:00:30]} Qf7 {[%emt 0:01:02]} 23. Bf4 {[%emt 0:00:30]} Nb7 {[%emt 0:01:36]} 24. Re6 {[%emt 0:00:30]} gxf5 {[%emt 0:01:52]} 25. gxf5 {[%emt 0:00:30]} fxg5 {[%emt 0:00:51]} 26. Bxg5 {[%emt 0:00:30]} Be5 {[%emt 0:04:22]} 27. Re7 {[%emt 0:03:30]} Qh5 {[%emt 0:01:54]} 28. Rxe5 {[%emt 0:01:30]} dxe5 {[%emt 0:00:05]} 29. Bxd8 {[%emt 0:00:30]} Rxd8 {[%emt 0:00:26]} 30. Rf1 {[%emt 0:00:30]} Nd6 {[%emt 0:00:36]} 31. f6 {[%emt 0:00:30]} Nf7 {[%emt 0:00:43]} 32. Be6 {[%emt 0:00:30]} Kc7 {[%emt 0:02:24]} 33. Qd3 {[%emt 0:01:30]} Nd6 {[%emt 0:01:10]} 34. f7 {[%emt 0:01:30]} e4 {[%emt 0:01:22]} 35. Qa6 {[%emt 0:00:30]} Nb7 {[%emt 0:01:48]} 36. Qb5 {[%emt 0:06:30]} Rf8 {[%emt 0:01:01]} 37. Qd7+ {[%emt 0:00:30]} Kb8 {[%emt 0:00:06]} 38. d6 {[%emt 0:01:30]} Qe2 {[%emt 0:00:43]} 39. Rc1 {[%emt 0:00:30]} Qd2 {[%emt 0:00:19]} 40. Qe8+ {[%emt 0:00:30]} 1-0

[Event "33rd Pula Open 2019"]
[Site "Pula"]
[Date "2019.06.22"]
[Round "1.6"]
[White "Marceta, Milan"]
[Black "Berezjuk, Sergej"]
[Result "0-1"]
[ECO "B32"]
[WhiteElo "1871"]
[BlackElo "2411"]
[Annotator "ChessBase"]
[PlyCount "40"]
[EventDate "2019.06.22"]
[EventType "swiss"]
[EventCountry "CRO"]
[SourceTitle "playchess.com"]
[Source "ChessBase"]
[SourceQuality "1"]
[TimeControl "5400+30"]

1. e4 {[%emt 0:00:30]} c5 {[%emt 0:00:30]} 2. Nf3 {[%emt 0:00:30]} Nc6 {[%emt 0:00:00]} 3. d4 {[%emt 0:01:30]} cxd4 {[%emt 0:01:00]} 4. Nxd4 {[%emt 0:00:30]} e5 {[%emt 0:00:00]} 5. Nf3 {[%emt 0:01:30]} Nf6 {[%emt 0:01:00]} 6. Bc4 {[%emt 0:02:30]} Bc5 {[%emt 0:12:30]} 7. O-O {[%emt 0:00:30]} d6 {[%emt 0:00:30]} 8. h3 {[%emt 0:02:30]} Be6 {[%emt 0:02:30]} 9. Bxe6 {[%emt 0:01:30]} fxe6 {[%emt 0:01:30]} 10. Nc3 {[%emt 0:00:30]} O-O {[%emt 0:04:30]} 11. a3 {[%emt 0:02:30]} d5 {[%emt 0:10:30]} 12. Bg5 {[%emt 0:02:30]} d4 {[%emt 0:01:30]} 13. Ne2 {[%emt 0:02:30]} Be7 {[%emt 0:03:30]} 14. Qd3 {[%emt 0:03:30]} Nd7 {[%emt 0:00:30]} 15. Qc4 {[%emt 0:01:30]} Bxg5 {[%emt 0:00:30]} 16. Qxe6+ {[%emt 0:03:30]} Rf7 {[%emt 0:03:30]} 17. Ng3 {[%emt 0:02:30]} Bf6 {[%emt 0:04:30]} 18. Nf5 {[%emt 0:02:30]} Nf8 {[%emt 0:01:30]} 19. Qa2 {[%emt 0:04:30]} Qd7 {[%emt 0:00:30]} 20. Rad1 {[%emt 0:00:30]} Qe6 {[%emt 0:00:30]} 0-1

[Event "33rd Pula Open 2019"]
[Site "Pula"]
[Date "2019.06.22"]
[Round "1.7"]
[White "Grishchenko, Sergey"]
[Black "Weber, Harald"]
[Result "1-0"]
[ECO "D15"]
[WhiteElo "2411"]
[BlackElo "1869"]
[Annotator "ChessBase"]
[PlyCount "35"]
[EventDate "2019.06.22"]
[EventType "swiss"]
[EventCountry "CRO"]
[SourceTitle "playchess.com"]
[Source "ChessBase"]
[SourceQuality "1"]
[TimeControl "5400+30"]

1. d4 {[%emt 0:00:30]} d5 {[%emt 0:00:30]} 2. c4 {[%emt 0:00:30]} c6 {[%emt 0:00:30]} 3. Nc3 {[%emt 0:00:00]} Nf6 {[%emt 0:00:30]} 4. Nf3 {[%emt 0:00:00]} h6 {[%emt 0:01:30]} 5. e3 {[%emt 0:11:30]} e6 {[%emt 0:02:30]} 6. Bd3 {[%emt 0:02:30]} Bd6 {[%emt 0:02:30]} 7. O-O {[%emt 0:01:30]} b6 {[%emt 0:01:30]} 8. e4 {[%emt 0:08:30]} dxe4 {[%emt 0:01:30]} 9. Nxe4 {[%emt 0:05:30]} Be7 {[%emt 0:00:30]} 10. Qe2 {[%emt 0:09:30]} Nbd7 {[%emt 0:02:30]} 11. b3 {[%emt 0:08:30]} Qc7 {[%emt 0:02:30]} 12. Bb2 {[%emt 0:05:30]} Bb7 {[%emt 0:01:30]} 13. Rad1 {[%emt 0:01:30]} Rd8 {[%emt 0:01:30]} 14. Rfe1 {[%emt 0:01:30]} Nxe4 {[%emt 0:05:30]} 15. Bxe4 {[%emt 0:01:30]} Nf6 {[%emt 0:02:30]} 16. Bb1 {[%emt 0:00:30]} O-O {[%emt 0:11:30]} 17. Qc2 {[%emt 0:03:30]} g6 {[%emt 0:03:30]} 18. Rxe6 {[%emt 0:07:30]} 1-0

[Event "33rd Pula Open 2019"]
[Site "Pula"]
[Date "2019.06.22"]
[Round "1.8"]
[White "Karall, Lorenz"]
[Black "Zufic, Miroslav"]
[Result "0-1"]
[ECO "D15"]
[WhiteElo "1864"]
[BlackElo "2380"]
[Annotator "ChessBase"]
[PlyCount "66"]
[EventDate "2019.06.22"]
[EventType "swiss"]
[EventCountry "CRO"]
[SourceTitle "playchess.com"]
[Source "ChessBase"]
[SourceQuality "1"]
[TimeControl "5400+30"]

1. d4 {[%emt 0:02:30]} Nf6 {[%emt 0:00:30]} 2. Nf3 {[%emt 0:00:30]} d5 {[%emt 0:00:00]} 3. c4 {[%emt 0:00:30]} dxc4 {[%emt 0:00:00]} 4. Nc3 {[%emt 0:00:30]} c6 {[%emt 0:00:30]} 5. e4 {[%emt 0:03:30]} b5 {[%emt 0:00:30]} 6. e5 {[%emt 0:01:30]} Nd5 {[%emt 0:00:30]} 7. Ne4 {[%emt 0:00:30]} e6 {[%emt 0:03:30]} 8. a4 {[%emt 0:00:30]} Bb7 {[%emt 0:02:30]} 9. Bd2 {[%emt 0:01:30]} Nd7 {[%emt 0:05:30]} 10. Be2 {[%emt 0:02:30]} a6 {[%emt 0:07:30]} 11. O-O {[%emt 0:02:30]} h6 {[%emt 0:02:30]} 12. b3 {[%emt 0:03:30]} cxb3 {[%emt 0:01:30]} 13. Qxb3 {[%emt 0:00:30]} Be7 {[%emt 0:01:30]} 14. axb5 {[%emt 0:01:30]} cxb5 {[%emt 0:03:30]} 15. Ba5 {[%emt 0:01:30]} Qb8 {[%emt 0:00:30]} 16. Rfc1 {[%emt 0:01:30]} O-O {[%emt 0:05:30]} 17. Nfd2 {[%emt 0:04:30]} Qa7 {[%emt 0:02:30]} 18. Qb2 {[%emt 0:01:30]} Rac8 {[%emt 0:04:30]} 19. Nb3 {[%emt 0:01:30]} Nf4 {[%emt 0:01:30]} 20. Rxc8 {[%emt 0:07:30]} Nxe2+ {[%emt 0:05:30]} 21. Qxe2 {[%emt 0:01:30]} Rxc8 {[%emt 0:00:30]} 22. Nd6 {[%emt 0:01:30]} Bxd6 {[%emt 0:24:30]} 23. exd6 {[%emt 0:01:30]} Bd5 {[%emt 0:06:30]} 24. Qb2 {[%emt 0:04:30]} Bxb3 {[%emt 0:02:06]} 25. Qxb3 {[%emt 0:00:30]} Qxd4 {[%emt 0:00:24]} 26. Rd1 {[%emt 0:00:00]} Qc4 {[%emt 0:00:59]} 27. Qf3 {[%emt 0:01:00]} Qc2 {[%emt 0:03:34]} 28. Rf1 {[%emt 0:00:30]} Rc6 {[%emt 0:00:27]} 29. Bc7 {[%emt 0:00:30]} b4 {[%emt 0:00:39]} 30. g3 {[%emt 0:07:30]} b3 {[%emt 0:00:38]} 31. Kg2 {[%emt 0:00:00]} b2 {[%emt 0:00:58]} 32. Rb1 {[%emt 0:00:00]} Qxb1 {[%emt 0:03:23]} 33. Qxc6 {[%emt 0:00:30]} Qc1 {[%emt 0:00:03]} 0-1

[Event "33rd Pula Open 2019"]
[Site "Pula"]
[Date "2019.06.22"]
[Round "1.9"]
[White "Beletic, Daniel"]
[Black "Vicze, Kata"]
[Result "1/2-1/2"]
[ECO "D30"]
[WhiteElo "2380"]
[BlackElo "1863"]
[Annotator "ChessBase"]
[PlyCount "77"]
[EventDate "2019.06.22"]
[EventType "swiss"]
[EventCountry "CRO"]
[SourceTitle "playchess.com"]
[Source "ChessBase"]
[SourceQuality "1"]
[TimeControl "5400+30"]

1. d4 {[%emt 0:08:30]} d5 {[%emt 0:00:30]} 2. c4 {[%emt 0:00:00]} e6 {[%emt 0:00:00]} 3. Nf3 {[%emt 0:00:00]} Nf6 {[%emt 0:00:00]} 4. e3 {[%emt 0:00:30]} c6 {[%emt 0:00:30]} 5. Nbd2 {[%emt 0:00:30]} Nbd7 {[%emt 0:01:30]} 6. b3 {[%emt 0:00:30]} Bd6 {[%emt 0:01:30]} 7. Bb2 {[%emt 0:00:00]} O-O {[%emt 0:02:30]} 8. Bd3 {[%emt 0:01:00]} b6 {[%emt 0:01:30]} 9. O-O {[%emt 0:00:30]} c5 {[%emt 0:01:30]} 10. cxd5 {[%emt 0:01:30]} exd5 {[%emt 0:05:30]} 11. Ne5 {[%emt 0:00:30]} Bb7 {[%emt 0:02:30]} 12. f4 {[%emt 0:00:30]} Ne4 {[%emt 0:03:30]} 13. Nxe4 {[%emt 0:05:30]} dxe4 {[%emt 0:00:00]} 14. Bc4 {[%emt 0:00:30]} Qe7 {[%emt 0:06:00]} 15. Nxd7 {[%emt 0:02:30]} Qxd7 {[%emt 0:00:30]} 16. dxc5 {[%emt 0:00:00]} bxc5 {[%emt 0:00:30]} 17. Qh5 {[%emt 0:01:00]} Kh8 {[%emt 0:06:30]} 18. Rad1 {[%emt 0:09:30]} Qe7 {[%emt 0:04:30]} 19. Rf2 {[%emt 0:06:30]} Rad8 {[%emt 0:02:30]} 20. Rfd2 {[%emt 0:00:30]} f5 {[%emt 0:05:30]} 21. Qh6 {[%emt 0:02:30]} Bc7 {[%emt 0:04:30]} 22. Be6 {[%emt 0:01:30]} Rxd2 {[%emt 0:05:30]} 23. Rxd2 {[%emt 0:00:30]} Bc8 {[%emt 0:01:30]} 24. Bxc8 {[%emt 0:01:30]} Rxc8 {[%emt 0:00:00]} 25. Qc6 {[%emt 0:05:30]} Rd8 {[%emt 0:08:00]} 26. Rd5 {[%emt 0:01:30]} Rxd5 {[%emt 0:01:30]} 27. Qxd5 {[%emt 0:00:30]} Qd8 {[%emt 0:00:30]} 28. Qxd8+ {[%emt 0:04:30]} Bxd8 {[%emt 0:00:30]} 29. Kf2 {[%emt 0:01:30]} Kg8 {[%emt 0:00:00]} 30. Ke2 {[%emt 0:00:30]} Ba5 {[%emt 0:01:00]} 31. Kd1 {[%emt 0:01:30]} Kf7 {[%emt 0:02:30]} 32. Kc2 {[%emt 0:00:00]} g6 {[%emt 0:00:30]} 33. Bc3 {[%emt 0:00:00]} Bb4 {[%emt 0:00:30]} 34. Bb2 {[%emt 0:03:30]} Ke6 {[%emt 0:01:30]} 35. a3 {[%emt 0:00:00]} Be1 {[%emt 0:00:30]} 36. Bc3 {[%emt 0:00:00]} Bh4 {[%emt 0:02:30]} 37. g3 {[%emt 0:00:30]} Bd8 {[%emt 0:01:30]} 38. Bg7 {[%emt 0:01:30]} Kd5 {[%emt 0:01:30]} 39. Bc3 {[%emt 0:00:30]} 1/2-1/2